Cogmind - Beta 17 @@@ ROGUE MODE // 2026.06.26 @ 07:46:42 Player: nnnnsk Result: Destroyed by L-41 Fighter with Axe Performance ------------- Evolutions (3) 1500 Regions Visited (9) 1800 Robots Destroyed (126) 630 Value Destroyed (4262) 4262 Prototype IDs (33) 660 Alien Tech Used (0) 0 Bonus (941) 941 TOTAL SCORE: 9793 Bonus ------- High Alert Combat Kills 210 Follower Combat Kills 31 Entered Garrisons 200 Used RIF Installer 500 Cogmind --------- Core Integrity 0/700 Matter 110/300 Energy 100/100 System Corruption 2% Temperature Cool (18) Movement Core (50) Location -7/Factory Parts ------- > --- POWER (1) -------- (None) > --- PROPULSION (4) --- (None) > --- UTILITY (6) ------ Improved Signal Interpreter Relay Coupler [NC] (24) Relay Coupler [Sentry] (25) > --- WEAPON (2) ------- (None) > --- INVENTORY (5) ---- Small Storage Unit Trap Scanner Transmission Jammer Heavy Rocket Launcher Axe Peak State ------------ > --- POWER ------------ Improved Ion Engine > --- PROPULSION ------- Advanced Treads Carbon-fiber Leg Flexi-carbon Leg Flexi-carbon Leg > --- UTILITY ---------- Improved Heat Sink Large Storage Unit Target Analyzer Core Analyzer Hacking Suite System Shield > --- WEAPON ----------- Enhanced Autogun Enhanced Autogun > --- INVENTORY -------- Light Nuclear Core Aluminum Leg Aluminum Leg Surge Thruster Surge Thruster Small Storage Unit Makeshift Sensor Array Improved Signal Interpreter Energy Filter Relay Coupler [Grunt] Enhanced Autogun Gauss Rifle Improved Datajack Heavy Flail [Rating: 47] Favorites ----------- Power Makeshift Power Source Engine Makeshift Power Source Power Core Light Nuclear Core Propulsion Light Treads Treads Light Treads Leg Carbon-fiber Leg Wheel Wheel Flight Unit Surge Thruster Utility Huge Storage Unit Device Improved Terrain Scanner Storage Huge Storage Unit Processor Core Analyzer Hackware Hacking Suite Protection Improved Light Armor Plating Weapon Shotgun Energy Gun AWS/Thermal Ballistic Gun Shotgun Launcher Grenade Launcher Impact Weapon Heavy Flail Slashing Weapon Axe Special Melee Weapon Improved Datajack Build | -11 -10 -9 -9 -9 -8 -8 -7 -7 -7 ------- Run | Yrd Mat Mat Min Exi Min Mat Fac Gar Fac Slots Evolved 6 | . . 2 . . . 2 2 . . Power . | . . . . . . . . . . Propulsion 2 | . . 2 . . . . . . . Utility 4 | . . . . . . 2 2 . . Weapon . | . . . . . . . . . . Parts Attached 93 | 7 4 18 1 1 5 21 2 18 16 Power 12 | 1 1 3 1 . . 2 . 1 3 Engine 10 | 1 1 3 1 . . 1 . 1 2 Core 2 | . . . . . . 1 . . 1 Reactor . | . . . . . . . . . . Propulsion 36 | 2 1 11 . . 1 7 . 9 5 Treads 17 | 2 . 7 . . 1 7 . . . Leg 10 | . . 1 . . . . . 9 . Wheel 4 | . 1 3 . . . . . . . Hover . | . . . . . . . . . . Flight 5 | . . . . . . . . . 5 Utility 25 | 2 1 1 . . 1 7 2 4 7 Device 7 | 1 . . . . . 4 . 2 . Storage 4 | 1 1 . . . . 1 . . 1 Processor 3 | . . . . . . 1 . 1 1 Hackware 7 | . . . . . . 1 1 . 5 Protection 4 | . . 1 . . 1 . 1 1 . Artifact . | . . . . . . . . . . Weapon 20 | 2 1 3 . 1 3 5 . 4 1 Energy Gun 6 | . . 1 . 1 3 1 . . . Energy Cannon . | . . . . . . . . . . Ballistic Gun 10 | 2 . 2 . . . 3 . 3 . Ballistic Cannon . | . . . . . . . . . . Launcher 1 | . 1 . . . . . . . . Special Weapon . | . . . . . . . . . . Impact Weapon 1 | . . . . . . 1 . . . Slashing Weapon 1 | . . . . . . . . 1 . Piercing Weapon . | . . . . . . . . . . Special Melee Weapon 1 | . . . . . . . . . 1 Unidentified Prototypes 6 | . . 4 . . . 1 . . 1 Parts Lost 30 | . 2 2 . . . 2 . 14 10 Power 5 | . 1 1 . . . 2 . . 1 Propulsion 13 | . 1 . . . . . . 7 5 Utility 6 | . . . . . . . . 3 3 Weapon 6 | . . 1 . . . . . 4 1 Highest Loss Streak 8 | . 1 1 . . . 1 . 5 8 To Critical Strikes 1 | . . . . . . . . 1 . Average Backups 18 | 2 7 23 25 25 24 20 13 14 5 Power . | . 1 1 1 1 1 . 1 1 . Propulsion 4 | . 1 4 6 6 6 5 3 3 . Utility 6 | . 3 9 8 8 8 6 3 5 3 Weapon 6 | 1 2 7 8 9 8 6 5 3 1 Tool/Special . | . . . . . . . . . . Unused Backups 55 | . 4 8 1 1 2 22 . 12 5 Power 5 | . . 1 . . 1 1 . 1 1 Propulsion 13 | . 3 . . . . 6 . 4 . Utility 20 | . . 4 1 1 1 5 . 5 3 Weapon 16 | . 1 3 . . . 9 . 2 1 Tool/Special 1 | . . . . . . 1 . . . Average Slot Usage (%) 97 | . 99 99 100 97 90 99 99 95 85 Engine 8 | . 14 11 11 11 11 2 7 7 1 Core 1 | . . . . . . 6 . . 5 Treads 32 | . 27 39 44 44 44 35 30 16 . Leg 1 | . . . . . . . . 11 1 Flight 1 | . . . . . . . . . 24 Device 8 | . 14 1 10 11 . 17 7 5 7 Storage 9 | . 14 11 11 11 11 9 7 7 . Processor 3 | . . . . . . 6 7 10 7 Hackware 4 | . . . . . . 1 15 12 27 Protection 3 | . . 9 . . 10 1 6 5 . Energy Gun 2 | . . . . 1 13 8 . . . Ballistic Gun 14 | . 20 20 22 18 . 8 15 11 . Launcher 1 | . 7 1 . . . . . . . Peak Build Rating 47 | 9 10 20 20 33 33 37 39 47 41 Average Rating 25 | 4 9 17 19 22 30 33 38 39 36 On Entrance 22 | . 9 10 19 20 33 21 33 39 41 Avg Prop Armor Cover (%) 9 | . 4 11 . . . . . 8 10 Naked Turns . | . . . . . . . . . . Heaviest Build 98 | 12 91 97 97 93 94 98 37 46 46 Greatest Support 86 | 40 40 80 80 80 80 86 84 86 60 Greatest Overweight (x) 9 | . 4 9 1 1 1 1 . 1 2 Average Overweight (x) . | . . 1 1 1 1 . . . . Largest Inventory Capacity 25 | 8 25 25 25 25 25 25 15 15 15 Average Capacity 19 | 6 10 25 25 25 25 20 15 15 5 Most Carried 25 | 5 11 25 25 25 25 25 14 15 15 Average Carried 18 | 2 7 23 24 25 24 20 13 14 5 Final Capacity 25 | 8 25 25 25 25 25 15 15 15 5 Final Carried 25 | 5 11 25 25 25 23 15 14 15 5 Class Distribution -------------------- 68% | Scavenger-Mutant 15% | Mutant 11% | Hacker-Mutant 4% | Hacker-Sprinter Dominant Class ---------------- Mutant | -10/Materials Scavenger-Mutant | -9/Materials Scavenger-Mutant | -9/Mines Scavenger-Mutant | -9/Exiles Scavenger-Mutant | -8/Mines Scavenger-Mutant | -8/Materials Hacker-Mutant | -7/Factory Scavenger-Mutant | -7/Garrison Hacker-Sprinter | -7/Factory Resources | -11 -10 -9 -9 -9 -8 -8 -7 -7 -7 ----------- Run | Yrd Mat Mat Min Exi Min Mat Fac Gar Fac Matter Collected 3101 | 240 312 838 86 . 60 606 . 959 . Remotely . | . . . . . . . . . . Salvage Created 4386 | 20 491 1267 74 . 418 1075 . 1013 28 Parts 259 | 2 24 79 9 . 20 67 . 55 3 Haulers Intercepted 10 | . 2 4 . . . 4 . . . Recyclers Shooed 1 | . . 1 . . . . . . . Parts Field Recycled . | . . . . . . . . . . Retrieved Matter . | . . . . . . . . . . Parts Self-Destructed . | . . . . . . . . . . Prevented . | . . . . . . . . . . Parts Restored . | . . . . . . . . . . Kills | -11 -10 -9 -9 -9 -8 -8 -7 -7 -7 ------- Run | Yrd Mat Mat Min Exi Min Mat Fac Gar Fac Combat Hostiles Destroyed 98 | . 10 26 6 . 10 17 . 29 . Guns 74 | . 9 14 6 . 10 16 . 19 . AOE 23 | . 1 12 . . . . . 10 . Classes Destroyed 16 | 1 5 4 . . 1 3 . 2 . Worker 4 | . . 4 . . . . . . . Builder 3 | . 1 1 . . . 1 . . . Tunneler 1 | 1 . . . . . . . . . Hauler 10 | . 2 4 . . . 4 . . . Recycler 4 | . . 4 . . . . . . . Operator 2 | . . . . . . 1 . . 1 Watcher 4 | . 2 2 . . . . . . . Swarmer 33 | . 2 11 6 . 3 . . 11 . Cutter 1 | . . . . . . . . 1 . Grunt 41 | . 8 10 . . 5 7 . 11 . Brawler 3 | . . 1 . . 1 . . 1 . Duelist 5 | . . . . . . 1 . 4 . Sentry 11 | . . 4 . . . 7 . . . Specialist 2 | . . . . . . 2 . . . Hunter 1 | . . . . . 1 . . . . Programmer 1 | . . . . . . . . 1 . Best Kill Streak 11 | 1 2 11 3 . 3 4 . 4 1 Combat Bots Only 9 | . 2 9 3 . 3 3 . 4 . Max Kills in Single Turn 4 | 1 2 4 2 . 1 1 . 3 1 Gunslinging . | . . . . . . . . . . Exploded 4 | . 1 4 . . . . . 3 . Melee . | . . . . . . . . . . Uniques/NPCs Destroyed . | . . . . . . . . . . Combat | -11 -10 -9 -9 -9 -8 -8 -7 -7 -7 -------- Run | Yrd Mat Mat Min Exi Min Mat Fac Gar Fac Hostile Shots Fired 585 | . 69 99 10 . 34 100 . 96 177 Missed 185 | . 21 30 3 . 12 23 . 13 83 Hits 400 | . 48 69 7 . 22 77 . 83 94 Melee 26 | . . . . . . 5 . 20 1 Projectile 374 | . 48 69 7 . 22 72 . 63 93 Critical Strikes 13 | . . 1 . . 1 4 . 6 1 Damage Taken 5788 | . 553 749 64 . 270 1333 . 1876 943 Core 1239 | . 59 106 . . 70 289 . 173 542 Absorbed by Shields 25 | . . . . . . . . . 25 Redirected to Shielding 27 | . . . . . 27 . . . . Regen/Repaired (Parts) 332 | . . 167 . . . 147 . . 18 Core Remaining (%) 69 | 100 76 . . . 56 47 . . . Volleys Fired 305 | 1 70 71 7 . 2 74 . 80 . Largest 2 | 2 2 2 2 . 1 2 . 2 . Hottest 121 | 40 40 46 46 . 45 121 . 53 . Shots Fired 599 | 2 120 131 14 . 44 144 . 144 . Gun 573 | 2 116 123 14 . 44 140 . 134 . Cannon . | . . . . . . . . . . Launcher 26 | . 4 8 . . . 4 . 10 . Special . | . . . . . . . . . . Kinetic 475 | 2 116 123 14 . . 86 . 134 . Thermal 96 | . . . . . 42 54 . . . Explosive 26 | . 4 8 . . . 4 . 10 . Electromagnetic 2 | . . . . . 2 . . . . Robot Hit Streak 21 | 1 21 20 4 . 13 9 . 19 . Robot Miss Streak 5 | 1 5 4 3 . 3 4 . 4 . Penetration Max 1 | . . . . . . . . 1 . Secondary Targets 5 | . 1 . . . . 1 . 3 . Max Gunslinging Chain 1 | . 1 . . . . 1 . 1 . Autonomous 43 | . . . . . 43 . . . . Shots Hit Robots 426 | 1 83 97 10 . 31 97 . 98 9 Core Hits 227 | 2 29 71 6 . 15 41 . 63 . Critical Kills 1 | . . . . . . . . 1 . Critical Parts Destroyed 5 | . 2 1 . . . 1 . 1 . Critical Strikes 9 | . 2 1 . . . 4 . 2 . Burn 3 | . . . . . . 3 . . . Destroy 5 | . 2 1 . . . . . 2 . Smash 1 | . . . . . . 1 . . . Melee Attacks 61 | . . . . . . 10 . 29 22 Impact 17 | . . . . . . 10 . 7 . Slashing 36 | . . . . . . . . 22 14 Piercing . | . . . . . . . . . . Sneak Attacks 9 | . . . . . . . . . 9 Combat Hostiles . | . . . . . . . . . . Follow-up Attacks . | . . . . . . . . . . Damage Inflicted 8623 | 21 1016 2047 127 . 964 1841 . 2505 102 Guns 6358 | 21 854 1316 127 . 831 1604 . 1605 . Cannons . | . . . . . . . . . . Explosions 1988 | . 162 731 . . 133 62 . 900 . Melee 277 | . . . . . . 175 . . 102 Ramming . | . . . . . . . . . . Kinetic 4892 | 21 854 1316 127 . . 969 . 1605 . Thermal 1581 | . . . . . 946 635 . . . Explosive 1855 | . 162 731 . . . 62 . 900 . Electromagnetic 18 | . . . . . 18 . . . . Impact 175 | . . . . . . 175 . . . Slashing 102 | . . . . . . . . . 102 Piercing . | . . . . . . . . . . Highest Corruption 2 | . . . . . . . . 1 2 Average Corruption 1 | . . . . . . . . 1 1 Corruption Purged . | . . . . . . . . . . Corruption Blocked . | . . . . . . . . . . Effects 17 | . . . . . . . . 11 6 Message Errors 4 | . . . . . . . . 3 1 Matter Fused 2 | . . . . . . . . 2 . Heat Flow Errors 4 | . . . . . . . . 1 3 Energy Discharges 2 | . . . . . . . . 1 1 Parts Fused 1 | . . . . . . . . 1 . Data Loss (minor) 1 | . . . . . . . . 1 . Data Loss (major) 1 | . . . . . . . . 1 . Misfires 1 | . . . . . . . . 1 . Alerts 1 | . . . . . . . . . 1 Overload Shots . | . . . . . . . . . . Overflow Damage 161 | . . 27 . . 5 27 . 35 67 Projectiles . | . . . . . . . . . . Explosions 67 | . . 27 . . 5 . . 35 . Melee 94 | . . . . . . 27 . . 67 Knockbacks 1 | . . . . . . 1 . . . Impact 1 | . . . . . . 1 . . . Kinetic . | . . . . . . . . . . Secondary . | . . . . . . . . . . Self-Inflicted Damage 196 | . . 7 . . . 29 . 160 . Shots 10 | . . 1 . . . 1 . 8 . Rammed . | . . . . . . . . . . Targets Rammed . | . . . . . . . . . . Kicked . | . . . . . . . . . . Crushed . | . . . . . . . . . . Highest Temperature 175 | . 18 19 . . 16 175 . 85 155 Average Temperature 35 | . 7 6 . . 10 46 . 11 75 Received Heat Transfer 1698 | . 279 258 . . 126 549 . 261 225 Siege Activations . | . . . . . . . . . . Martial Activations . | . . . . . . . . . . Shielding Activations . | . . . . . . . . . . Robots Disrupted . | . . . . . . . . . . Combat Hostiles . | . . . . . . . . . . Robots Corrupted 1 | . . . . . . 1 . . . Combat Hostiles 1 | . . . . . . 1 . . . Parts Fried . | . . . . . . . . . . Impact Corruptions 1 | . . . . . . 1 . . . Robots Melted . | . . . . . . . . . . Combat Hostiles . | . . . . . . . . . . Parts Melted 5 | . . . . . 1 4 . . . Heat Transferred 2888 | . . . . . 1186 1702 . . . Parts Sabotaged . | . . . . . . . . . . Parts Stolen . | . . . . . . . . . . Parts Stripped . | . . . . . . . . . . Power Chain Reactions . | . . . . . . . . . . Alert | -11 -10 -9 -9 -9 -8 -8 -7 -7 -7 ------- Run | Yrd Mat Mat Min Exi Min Mat Fac Gar Fac Maximum Alert Level 3 | . . 2 1 . . 1 . 3 2 Low Security (%) 73 | 100 100 70 90 . 100 99 100 24 2 Level 1 12 | . . 13 9 . . . . 16 73 Level 2 11 | . . 16 . . . . . 40 24 Level 3 2 | . . . . . . . . 18 . Level 4 . | . . . . . . . . . . Level 5 . | . . . . . . . . . . High Security . | . . . . . . . . . . Max Security . | . . . . . . . . . . Peak Influence 842 | 5 116 502 255 . 183 222 100 842 453 Initial 441 | . . 43 185 . . 47 100 . 441 Average 141 | . 20 135 57 . 52 37 28 435 312 Influence Increases 3762 | 5 437 854 162 . 327 645 . 1042 290 Destroy 0b10 Robot/C 2020 | . 200 520 140 . 200 340 . 620 . Destroy 0b10 Robot/NC 140 | 5 25 75 . . . 30 . . 5 Destroy Leader 378 | . 58 102 20 . 40 118 . 40 . Allied During Kill 28 | . . . 2 . . . . 26 . Successful Hack 201 | . 55 39 . . . 15 . . 92 Select Force Hacks 60 | . 30 . . . . 30 . . . Disable Machine 180 | . 30 30 . . 60 60 . . . Anti-Garrison Action 300 | . . . . . . . . 300 . Destroy Structure 200 | . 24 28 . . 27 52 . 56 13 Partial Spotted 30 | . . . . . . . . . 30 Lose Combat Pursuer 225 | . 15 60 . . . . . . 150 Influence Decreases 3647 | 5 333 482 638 . 204 546 222 200 1017 Entered New Map 951 | . . 61 291 . . 76 122 . 401 Time Decay 2164 | 5 313 401 325 . 204 460 100 . 356 Search Patrol Dispatched 100 | . . . . . . . . . 100 Lost Part 290 | . 20 20 . . . 10 . 140 100 Lost Ally 142 | . . . 22 . . . . 60 60 Squads Dispatched 11 | . 2 1 . . . 4 . . 4 Investigation 4 | . 2 1 . . . 1 . . . Extermination 2 | . . . . . . . . . 2 Reinforcement 5 | . . . . . . 3 . . 2 Assault . | . . . . . . . . . . Garrison . | . . . . . . . . . . Intercept . | . . . . . . . . . . Searches Triggered 1 | . . . . . . . . . 1 Construction Impeded . | . . . . . . . . . . Haulers Reinforced . | . . . . . . . . . . Active Scanning Responses . | . . . . . . . . . . Cargo Convoy Interrupts . | . . . . . . . . . . Stealth | -11 -10 -9 -9 -9 -8 -8 -7 -7 -7 --------- Run | Yrd Mat Mat Min Exi Min Mat Fac Gar Fac Distress Signals 5 | . . 3 . . . 2 . . . Communications Jammed . | . . . . . . . . . . Distress Signals . | . . . . . . . . . . Times Spotted 141 | . 17 36 5 . 9 30 . 30 14 Peak Tracking Total 8 | . 4 7 3 . 3 4 . 4 8 Tactical Retreats 10 | . 1 4 . . . . . . 5 Traps | -11 -10 -9 -9 -9 -8 -8 -7 -7 -7 ------- Run | Yrd Mat Mat Min Exi Min Mat Fac Gar Fac Traps Triggered 9 | . 1 2 . . . . . 1 5 Indirectly 1 | . . 1 . . . . . . . Trap Hack Attempts . | . . . . . . . . . . Triggered . | . . . . . . . . . . Disarmed . | . . . . . . . . . . Reprogrammed . | . . . . . . . . . . Reused . | . . . . . . . . . . Traps Extracted . | . . . . . . . . . . Installed . | . . . . . . . . . . Triggered . | . . . . . . . . . . Machines | -11 -10 -9 -9 -9 -8 -8 -7 -7 -7 ---------- Run | Yrd Mat Mat Min Exi Min Mat Fac Gar Fac Machines Disabled 15 | . 2 2 . . 4 4 . 3 . Max in Single Turn 4 | . 2 2 . . 4 2 . 1 . Garrison Access 1 | . . . . . . . . . 1 Garrison Relay 3 | . . . . . . . . 3 . Machines Repaired . | . . . . . . . . . . Machines Dismantled . | . . . . . . . . . . Machines Sabotaged . | . . . . . . . . . . Overloaded Fab Kills . | . . . . . . . . . . Hacking | -11 -10 -9 -9 -9 -8 -8 -7 -7 -7 --------- Run | Yrd Mat Mat Min Exi Min Mat Fac Gar Fac Machines Accessed 44 | . 6 8 . 1 . 11 3 2 13 Terminals 27 | . 5 7 . . . 8 . 2 5 Fabricators 3 | . . . . . . . 1 . 2 Repair Stations 5 | . . 1 . . . 1 . . 3 Recycling Units 2 | . 1 . . . . 1 . . . Scanalyzers 3 | . . . . . . 1 1 . 1 Garrison Access 3 | . . . . . . . 1 . 2 Total Hacks 127 | . 25 33 . 1 . 26 8 4 30 Successful 76 | . 17 22 . 1 . 14 5 1 16 Failed 51 | . 8 11 . . . 12 3 3 14 Catastrophic 6 | . 1 . . . . 1 1 1 2 Database Lockouts . | . . . . . . . . . . Manual 77 | . 21 22 . 1 . 16 4 . 13 Terminals 87 | . 24 28 . . . 16 . 4 15 Fabricators 8 | . . . . . . . 4 . 4 Repair Stations 16 | . . 5 . . . 6 . . 5 Recycling Units 2 | . 1 . . . . 1 . . . Scanalyzers 8 | . . . . . . 3 2 . 3 Garrison Access 5 | . . . . . . . 2 . 3 Terminal Hacks 22 | . 7 8 . 1 . 3 . 1 2 Robot Analysis 1 | . . 1 . . . . . . . Prototype ID Bank 2 | . . 2 . . . . . . . Open Door 1 | . . . . . . . . 1 . Branch Access Points 2 | . 1 . . . . 1 . . . Emergency Access Points 1 | . . . . . . 1 . . . Terminal Index 2 | . . 1 . . . 1 . . . Locate Traps 7 | . 3 3 . . . . . . 1 Hauler Manifests 1 | . 1 . . . . . . . . Zone Layout 4 | . 2 1 . . . . . . 1 Proto ID Catalog 1 | . . . . 1 . . . . . Fabricator Hacks 2 | . . . . . . . 1 . 1 Load Schematic 1 | . . . . . . . 1 . . Build 1 | . . . . . . . . . 1 Repair Station Hacks 11 | . . 4 . . . 4 . . 3 Scan Component 6 | . . 2 . . . 2 . . 2 Repair 5 | . . 2 . . . 2 . . 1 Recycling Unit Hacks . | . . . . . . . . . . Scanalyzer 7 | . . . . . . 2 2 . 3 Insert Component 3 | . . . . . . . 1 . 2 Analyze 2 | . . . . . . . 1 . 1 Retrieve Study 2 | . . . . . . 2 . . . Garrison Access Hacks 3 | . . . . . . . 1 . 2 Unlock Access 1 | . . . . . . . 1 . . Seal Access 1 | . . . . . . . . . 1 Coupler Status 1 | . . . . . . . . . 1 Unauthorized Hacks 31 | . 10 10 . . . 5 1 . 5 Terminals 23 | . 9 9 . . . 3 . . 2 Botnet 9 | . 2 3 . . . 2 . . 2 Operators 4 | . 2 1 . . . 1 . . . Skim 10 | . 5 5 . . . . . . . Fabricators 2 | . . . . . . . 1 . 1 Prioritize 1 | . . . . . . . . . 1 Haulers 1 | . . . . . . . 1 . . Repair Stations 2 | . . 1 . . . . . . 1 Mechanics 2 | . . 1 . . . . . . 1 Recycling Units 2 | . 1 . . . . 1 . . . Tunnel 2 | . 1 . . . . 1 . . . Scanalyzers 1 | . . . . . . 1 . . . Researchers 1 | . . . . . . 1 . . . Garrison Access 1 | . . . . . . . . . 1 Watchers 1 | . . . . . . . . . 1 Data Cores Recovered 2 | . . . . . . 1 . . 1 Used 1 | . . . . . . . . . 1 Hacking Detections 34 | . 5 8 . . . 10 1 1 9 Full Trace Events 1 | . . . . . . . . 1 . Feedback Events . | . . . . . . . . . . Feedback Blocked . | . . . . . . . . . . Robot Schematics Acquired . | . . . . . . . . . . Robots Built 3 | . . . . . . . . . 3 Authchips 1 | . . . . . . . . . 1 Time 22 | . . . . . . . . . 22 Total Robot Build Rating 12 | . . . . . . . . . 12 Part Schematics Acquired 2 | . . . . . . . 1 . 1 Parts Built . | . . . . . . . . . . Authchips . | . . . . . . . . . . Time . | . . . . . . . . . . Total Part Build Rating . | . . . . . . . . . . Part Studies Acquired 2 | . . . . . . 2 . . . Parts Repaired 5 | . . 2 . . . 2 . . 1 Time 132 | . . 52 . . . 64 . . 16 Parts Recycled . | . . . . . . . . . . Recycled Matter . | . . . . . . . . . . Retrieved Matter . | . . . . . . . . . . Retrieved Components . | . . . . . . . . . . Parts Scanalyzed 2 | . . . . . . . 1 . 1 Part Schematics Acquired 2 | . . . . . . . 1 . 1 Parts Damaged . | . . . . . . . . . . Bothacking | -11 -10 -9 -9 -9 -8 -8 -7 -7 -7 ------------ Run | Yrd Mat Mat Min Exi Min Mat Fac Gar Fac Used RIF Installer 1 | . . . . . . . . 1 . Robots Hacked 3 | . . . . . . . . . 3 Non-combat 3 | . . . . . . . . . 3 Combat . | . . . . . . . . . . Robot Hacks Applied 4 | . . . . . . . . . 4 find_fabricator 1 | . . . . . . . . . 1 drop_inventory 2 | . . . . . . . . . 2 find_recycling 1 | . . . . . . . . . 1 Relay Couplers Released 14 | . . . . . . . . 14 . Machine Destruction 14 | . . . . . . . . 14 . Attached 3 | . . . . . . . . . 3 Fabnet Peak Effective % . | . . . . . . . . . . Robots Rewired 3 | . . . . . . . . 3 . Allies Hacked . | . . . . . . . . . . Hacks Repelled . | . . . . . . . . . . Allies | -11 -10 -9 -9 -9 -8 -8 -7 -7 -7 -------- Run | Yrd Mat Mat Min Exi Min Mat Fac Gar Fac Total Allies 8 | . . . 2 . . . . 3 3 Largest Group 3 | . . . 2 . . . . 3 3 Highest-Rated Group 101 | . . . 41 . . . . 101 60 Highest-Rated Ally 39 | . . . 31 . . . . 39 20 Total Orders . | . . . . . . . . . . Ally Attacks 14 | . . . 2 . . . . 7 5 Total Damage 187 | . . . 21 . . . . 107 59 Kills 3 | . . . 1 . . . . 2 . Allies Corrupted . | . . . . . . . . . . Allies Melted . | . . . . . . . . . . Intel | -11 -10 -9 -9 -9 -8 -8 -7 -7 -7 ------- Run | Yrd Mat Mat Min Exi Min Mat Fac Gar Fac Active Infowar (turns) 7983 | 12 1543 289 1284 1340 65 1914 389 385 762 Sensors 946 | . . . . . . 184 . . 762 Terrain 4533 | 12 1543 289 1284 1340 65 . . . . Structural 2563 | . . . . . . 1789 389 385 . Traps 486 | . . . . . . 486 . . . Robot Analysis Total 1 | . . 1 . . . . . . . Derelict Logs Recovered 2 | . . . 2 . . . . . . Drone Launches . | . . . . . . . . . . Drone Recoveries . | . . . . . . . . . . Exploration | -11 -10 -9 -9 -9 -8 -8 -7 -7 -7 ------------- Run | Yrd Mat Mat Min Exi Min Mat Fac Gar Fac Turns Passed 12254 | 87 1543 2183 1320 1340 919 1914 389 1742 817 Spaces Moved 5915 | 44 482 764 534 558 360 701 148 959 1365 Core 25 | 3 . . . . . . . . 22 Treads 4014 | 41 482 683 534 558 360 701 148 507 . Legs 475 | . . . . . . . . 452 23 Wheels 81 | . . 81 . . . . . . . Hover . | . . . . . . . . . . Flight 1320 | . . . . . . . . . 1320 Fastest Speed 27 | 50 160 105 240 240 240 151 155 120 27 Average Speed 162 | 152 179 230 240 240 240 192 155 141 35 Slowest Speed 480 | 160 480 320 240 240 240 240 155 225 195 Overloaded Moves . | . . . . . . . . . . Propulsion Burnouts . | . . . . . . . . . . Robots Hopped 6 | . . . . . . . . . 6 Potential Cave-ins . | . . . . . . . . . . Cave-ins Triggered . | . . . . . . . . . . Exploration Rate (%) 52 | 3 72 54 85 91 59 50 3 72 37 Regions Visited 9 Branch Regions 3 Pre-discovered Areas 4 | . 1 1 1 . . 1 . . . Known Exits Taken 5 | . 1 1 . . 1 1 1 . . Unknown Exits Taken 3 | 1 . . 1 1 . . . . . Scrap Searched 4 | . . . 2 . 2 . . . . Spaces Dug 36 | . . . . . . 8 . 15 13 Terrain Destroyed 189 | . 24 26 . . 31 52 . 43 13 Melee 30 | . . . . . . 2 . 15 13 Projectile 13 | . . . . . 13 . . . . AOE 146 | . 24 26 . . 18 50 . 28 . Terrain Rammed . | . . . . . . . . . . Walls Destroyed . | . . . . . . . . . . Machines Disabled . | . . . . . . . . . . Actions | -11 -10 -9 -9 -9 -8 -8 -7 -7 -7 --------- Run | Yrd Mat Mat Min Exi Min Mat Fac Gar Fac Total 8023 | 60 1053 1055 559 562 416 1140 307 1202 1669 Wait 1378 | 1 482 146 13 . 44 271 156 55 210 Move 5895 | 43 481 763 533 557 359 700 148 958 1353 Hop 6 | . . . . . . . . . 6 Pick Up 97 | 8 11 23 2 1 2 22 1 22 5 Fast Attach 35 | 4 1 9 . 1 . 6 . 7 7 Attach 32 | 3 1 2 . . 2 4 2 8 10 Detach 4 | . . 2 . . . . . . 2 Swap 68 | . 2 20 2 . 3 18 . 16 7 Drop 104 | . 5 19 2 3 4 35 . 16 20 Fire 305 | 1 70 71 7 . 2 74 . 80 . Melee 61 | . . . . . . 10 . 29 22 Ram . | . . . . . . . . . . Kick . | . . . . . . . . . . Crush . | . . . . . . . . . . Escape Stasis 29 | . . . . . . . . 2 27 Rewire 9 | . . . . . . . . 9 . Trap . | . . . . . . . . . . Miscellaneous . | . . . . . . . . . . Route ------- -11/Scrapyard -10/Materials (discovered 5 exits: *Mat x3 / *Min / *Sub) -9/Materials (discovered 5 exits: *Mat x3 / *Min x2) -9/Mines (discovered 3 exits: *Mat x2 / *Exi) -9/Exiles (discovered 2 exits: [*Min x2]) -8/Mines -8/Materials (discovered 2 exits: *Fac x2) -7/Factory (discovered 2 exits: Sto / Gar) -7/Garrison (discovered 2 exits: *Fac x2) -7/Factory (discovered 1 exit: *Low) History --------- Turn | Location | Event 4 | -11/Scrapyard | Discovered new exit (range 16) 88 | -11/Scrapyard | Entered Materials 306 | -10/Materials | Build established: Mutant 394 | -10/Materials | Discovered new exit (range 16) 771 | -10/Materials | Identified exit to Mines 774 | -10/Materials | Discovered new exit (range 8) 850 | -10/Materials | Identified exit to Materials 850 | -10/Materials | Identified exit to Subcaves 917 | -10/Materials | Learned 2 Storage zone layouts 1026 | -10/Materials | Learned Storage interactive machine intel 1100 | -10/Materials | Learned location of 2 exits from Subcaves 1125 | -10/Materials | Learned location of 1 exit from Storage 1161 | -10/Materials | Learned Storage emergency access door positions 1631 | -10/Materials | Entered another Materials area 1631 | -9/Materials | Evolved 2 slots: Propulsion x2 2058 | -9/Materials | Build established: Scavenger-Mutant 2621 | -9/Materials | Repaired Lgt. Treads 2649 | -9/Materials | Repaired Lgt. Treads 3201 | -9/Materials | Destroyed 9 combat bots 3222 | -9/Materials | Discovered new exit (range 12) 3321 | -9/Materials | Identified exit to Mines 3321 | -9/Materials | Identified exit to Materials 3411 | -9/Materials | Learned location of 2 exits from Materials 3423 | -9/Materials | Learned location of 1 exit from Recycling 3452 | -9/Materials | Learned Storage emergency access door positions 3479 | -9/Materials | Learned Storage trap positions 3814 | -9/Materials | Entered Mines 3959 | -9/Mines | A weapon hastily lodged in a ceiling crevice suddenly fell to the ground 3978 | -9/Mines | Learned location of Storage (-7) 3997 | -9/Mines | Learned Materials stockpile data 4709 | -9/Mines | Found a hidden stash of uninstalled traps 4787 | -9/Mines | Discovered new exit (range 13) 4810 | -9/Mines | Deemed a non-threat by the Exiles lab entrance 5134 | -9/Mines | Entered Exiles 5134 | -9/Exiles | Found Exiles lab destroyed 5173 | -9/Exiles | Discovered new exit (range 15) 5917 | -9/Exiles | Discovered new exit (range 12) 6232 | -9/Exiles | Opened EX-Vault 6245 | -9/Exiles | Found AWS/Thermal 6474 | -9/Exiles | Entered Mines 7188 | -8/Mines | AWS/Thermal suddenly broke down 7393 | -8/Mines | Entered Materials 7393 | -8/Materials | Evolved 2 slots: Utility x2 7394 | -8/Materials | Identified exit to Factory 7995 | -8/Materials | Repaired Grenade Launcher 8034 | -8/Materials | Repaired Adv. Treads 9286 | -8/Materials | Core integrity fell below 50% 9307 | -8/Materials | Entered Factory 9307 | -7/Factory | Evolved 2 slots: Utility x2 9308 | -7/Factory | Identified exit to Storage 9614 | -7/Factory | Build established: Hacker-Mutant 9696 | -7/Factory | Identified exit to Garrison 9696 | -7/Factory | Entered Garrison 9729 | -7/Garrison | Garrison Relay disabled 9894 | -7/Garrison | Triggered checkpoint 10120 | -7/Garrison | Triggered checkpoint 10184 | -7/Garrison | Triggered checkpoint 10255 | -7/Garrison | Discovered new exit (range 10) 10538 | -7/Garrison | Triggered checkpoint 10631 | -7/Garrison | Lost 5 parts (3n1u1w) 10891 | -7/Garrison | Discovered new exit (range 15) 10956 | -7/Garrison | Build established: Scavenger-Mutant 10963 | -7/Garrison | Lost 5 parts (2n2u1w) 11090 | -7/Garrison | Triggered checkpoint 11156 | -7/Garrison | Garrison Relay disabled 11326 | -7/Garrison | Triggered checkpoint 11373 | -7/Garrison | Installed Relay Interface Framework 11379 | -7/Garrison | Garrison Relay disabled 11438 | -7/Garrison | Entered Factory 11853 | -7/Factory | Fabricated B-48 Gladiator (x3) 11930 | -7/Factory | Lost 3 allies 12109 | -7/Factory | Build established: Hacker-Sprinter 12131 | -7/Factory | Repaired VTOL Module 12205 | -7/Factory | Discovered new exit (range 5) 12206 | -7/Factory | Identified exit to Lower Caves 12238 | -7/Factory | Search patrols dispatched 12243 | -7/Factory | Core integrity fell below 50% 12253 | -7/Factory | Core integrity fell below 20% 12255 | -7/Factory | Destroyed by L-41 Fighter with Axe Last Messages --------------- within the floor. 12215_ Lgt. Deuterium Engine severed. 12215_ Acquired Lgt. Deuterium Engine. 12233_ Xenon Bombardment Thruster destroyed. 12233_ Lgt. Deuterium Engine destroyed. 12234_ Hacking Suite destroyed. 12236_ VTOL Module destroyed. 12237_ C-30 ARC bursts open, deploying its payload. 12237_ L-41 Fighter unfolds itself. 12237_ G-47 Trooper unfolds itself. 12238_ ALERT: Heightened foreign activity detected, multiple search patrols dispatched. [Achievement: Suspicious] 12239_ K-01 Serf destroyed. 12239_ K-01 Serf collects debris. 12240_ Mak. Sensor Array destroyed. 12241_ K-01 Serf collects debris. 12253_ Critical hit (Burn: +37). 12255_ System Shield destroyed. Map ----- +----------------------------------------------------+ | ?????????????????????????????????????????????????? | | ?????????????????????????????????????????????????? | | ?????????????????????????????????????????????????? | | ?????????????????????????????????????????????????? | | ?????????????????????????????????????????????????? | | ?????????????????????????????????????????????????? | | ?????????????????????????????????????????????????? | | ###??????????????????????????????????????????????? | | #??????????????????????????????????????????????? | | #??????????????????????????????????????????????? | | #??????????????????????????????????????????????? | | #??????????????????????????????????????????????? | | #??????????????????????????????????????????????? | | * #?????????????###??????????????????????????????? | | #????????????? #??????????????????????????????? | | #??????# ??"" #??????????????????????????????? | | #??????# """ #??????????????????????????????? | | #??????# """ #??????????????????????????????? | | #??????# #??????#+#?????????????????????? | | ##?????# """ #??????# #?????????????????????? | | ##"##????# """ #??????# #?????????????????????? | | ###"#????# """ #??????# #?????????????????????? | | #????# #????###k###???????????????????? | | ############+####### %r #????????? #????????? | | Y Y k g ###### #????????? | | > g p @l u #????????? | | w gk % ########+#+#????????? | | #################### #???????????????????? | | #????###???????????#######???????????????????? | | #####????????????????????????????????????????????? | | ?????????????????????????????????????????????????? | | ?????????????????????????????????????????????????? | | ?????????????????????????????????????????????????? | | ?????????????????????????????????????????????????? | | ?????????????????????????????????????????????????? | | ?????????????????????????????????????????????????? | | ?????????????????????????????????????????????????? | | ?????????????????????????????????????????????????? | | ?????????????????????????????????????????????????? | | ?????????????????????????????????????????????????? | | ?????????????????????????????????????????????????? | | ?????????????????????????????????????????????????? | | ?????????????????????????????????????????????????? | | ?????????????????????????????????????????????????? | | ?????????????????????????????????????????????????? | | ?????????????????????????????????????????????????? | | ?????????????????????????????????????????????????? | | ?????????????????????????????????????????????????? | | ?????????????????????????????????????????????????? | | ?????????????????????????????????????????????????? | +----------------------------------------------------+ Best States ------------- Heat Dissipation 48 Energy Generation 16 Energy Capacity 290 Matter Stores 300 Matter Capacity 300 Sight Range 16 Robot Scan Range 19 Terrain Scan Range 16 Terrain Scan Density 10 Armor Coverage 150 Core Shielding 20 Weapon Shielding 66 Evasion (%) 64 Target Analysis 5 Core Analysis 6 Recoil Reduction 4 Energy Filtering 30 Offensive Hacking 10 Defensive Hacking 10 Relay Coupler Types 2 Relay Coupler Value 58 Authchip Count 1 Item Schematics ----------------- Surge Thruster | -7/Factory | Scanalyzed Sml. Storage Unit | -7/Factory | Scanalyzed Robot Schematics ------------------ None Fabricated ------------ B-48 Gladiator | x3 | -7/Factory | Preloaded, Authchip Repaired ---------- Lgt. Treads | 25% | -9/Materials Lgt. Treads | 55% | -9/Materials Grenade Launcher | 18% | -8/Materials Adv. Treads | 42% | -8/Materials VTOL Module | 28% | -7/Factory Studied --------- Grenade Launcher | -8/Materials | Hacked Surge Thruster | -8/Materials | Hacked Alien Tech Used ----------------- None Achievements -------------- A New Friend Drive-By Express Service Official Business Suspicious Challenges ------------ None Game ------ Seed GrapheneWarpHoverbase Manual? 0 Play Time 01:35:48 Cumulative 74.7 hours Start 2026.06.26 @ 05:58:58 End 2026.06.26 @ 07:46:42 Sessions 1 Manual Loads 0 Difficulty Rogue Special Mode None Game No. 90 Rogue 83 Adventurer 0 Explorer 7 Win Type - Total 1 Types 1/0/0/0/0/0/0/0/0/0 Lore% 20 Gallery% 30 Achievement% 27 Wizard Run 0 Options --------- Layout 1 ASCII 0 Keyboard 0 Movement Numpad Keybinds 0 Fullscreen 2 Font 32/SmallcapsGlow Map View 50x35 Zoom Use 0% Tactical HUD 1 Map Filters NONE Filters NONE Steam 1 RUN: fa4d790a-5c2c-4bc9-81ba-719f70141d32